[Event "Is Bankasi Online Satranc Turn.13-14 Yas"]
[Site "T#645826Mustafa Kemal"]
[Date "2020.05.08"]
[Round "1"]
[White "Hasancanari30"]
[Black "Berkeeroglu76"]
[Result "0-1"]
[WhiteElo "1620"]
[BlackElo "1774"]
[Annotator "NA RC"]
[PlyCount "74"]
[EventDate "2020.05.08"]
[EventType "swiss (blitz)"]
[TimeControl "180+2"]

1. d4 {[%emt 0:00:03]} Nf6 {[%emt 0:00:02]} 2. c4 {[%emt 0:00:01]} g6 {[%emt 0:00:01]} 3. Nc3 {[%emt 0:00:01]} Bg7 {[%emt 0:00:01]} 4. e4 {[%emt 0:00:01]} d6 {[%emt 0:00:01]} 5. f3 {[%emt 0:00:01]} O-O {[%emt 0:00:02]} 6. Be3 {[%emt 0:00:01]} e5 {[%emt 0:00:02]} 7. d5 {[%emt 0:00:02]} a5 {[%emt 0:00:02]} 8. Qd2 {[%emt 0:00:01]} Na6 {[%emt 0:00:02]} 9. Nge2 {[%emt 0:00:01]} Nc5 {[%emt 0:00:03]} 10. h4 {[%emt 0:00:04]} h5 {[%emt 0:00:07]} 11. O-O-O {[%emt 0:00:07]} Bd7 {[%emt 0:00:19]} 12. Bg5 {[%emt 0:00:33]} Qe7 {[%emt 0:00:19]} 13. g4 {[%emt 0:00:04]} hxg4 {[%emt 0:00:07]} 14. fxg4 {[%emt 0:00:03]} Bxg4 {[%emt 0:00:01]} 15. Bh3 {[%emt 0:00:05]} Bxh3 {[%emt 0:00:19]} 16. Rxh3 {[%emt 0:00:03]} Qd7 {[%emt 0:00:05]} 17. Re3 {[%emt 0:00:16]} Nh5 {[%emt 0:00:17]} 18. Rf3 {[%emt 0:00:11]} f5 {[%emt 0:00:05]} 19. exf5 {[%emt 0:00:31]} Rxf5 {[%emt 0:00:03]} 20. Rdf1 {[%emt 0:00:06]} Raf8 {[%emt 0:00:03]} 21. Rxf5 {[%emt 0:00:10]} Rxf5 {[%emt 0:00:00]} 22. Rxf5 {[%emt 0:00:01]} Qxf5 {[%emt 0:00:04]} 23. Nb5 {[%emt 0:00:21]} Nd3+ {[%emt 0:00:17]} 24. Kd1 {[%emt 0:00:09]} Qf1+ {[%emt 0:00:05]} 25. Kc2 {[%emt 0:00:02]} Nb4+ {[%emt 0:00:15]} 26. Kb3 {[%emt 0:00:06]} Na6 {[%emt 0:00:18]} 27. Nec3 {[%emt 0:00:18]} Nf4 {[%emt 0:00:10]} 28. Bxf4 {[%emt 0:00:03]} exf4 {[%emt 0:00:02]} 29. Qc2 {[%emt 0:00:16]} Qg1 {[%emt 0:00:28]} 30. Qe4 {[%emt 0:00:10]} Nc5+ {[%emt 0:00:04]} 31. Ka3 {[%emt 0:00:01]} Nxe4 {[%emt 0:00:01]} 32. Nxe4 {[%emt 0:00:00]} Qg2 {[%emt 0:00:03]} 33. Nec3 {[%emt 0:00:01]} f3 {[%emt 0:00:03]} 34. Nxc7 {[%emt 0:00:01]} f2 {[%emt 0:00:01]} 35. Ne6 {[%emt 0:00:02]} f1=Q {[%emt 0:00:01]} 36. Ng5 {[%emt 0:00:06]} Qxc4 {[%emt 0:00:02]} 37. Ne6 {[%emt 0:00:03]} Qb4# {[%emt 0:00:02] (Lag: Av=0.69s, max=3.7s)} 0-1

[Event "Is Bankasi Online Satranc Turn.13-14 Yas"]
[Site "T#645826Mustafa Kemal"]
[Date "2020.05.08"]
[Round "1"]
[White "Sinasiatabozku42"]
[Black "Abdullahefeani74"]
[Result "1-0"]
[WhiteElo "1620"]
[BlackElo "1620"]
[Annotator "NA RC"]
[PlyCount "117"]
[EventDate "2020.05.08"]
[EventType "swiss (blitz)"]
[TimeControl "180+2"]

1. c4 {[%emt 0:00:04]} d6 {[%emt 0:00:03]} 2. Nc3 {[%emt 0:00:06]} Nd7 {[%emt 0:00:02]} 3. g3 {[%emt 0:00:04]} Ngf6 {[%emt 0:00:02]} 4. Bg2 {[%emt 0:00:02]} e5 {[%emt 0:00:01]} 5. Nf3 {[%emt 0:00:02]} Be7 {[%emt 0:00:01]} 6. O-O {[%emt 0:00:01]} c6 {[%emt 0:00:02]} 7. d3 {[%emt 0:00:01]} Qc7 {[%emt 0:00:01]} 8. Nd2 {[%emt 0:00:01]} O-O {[%emt 0:00:01]} 9. Nde4 {[%emt 0:00:03]} Re8 {[%emt 0:00:02]} 10. f4 {[%emt 0:00:02]} b6 {[%emt 0:00:10]} 11. fxe5 {[%emt 0:00:11]} dxe5 {[%emt 0:00:03]} 12. Nxf6+ {[%emt 0:00:05]} Bxf6 {[%emt 0:00:01]} 13. Nb5 {[%emt 0:00:15]} cxb5 {[%emt 0:00:36]} 14. Bxa8 {[%emt 0:00:00]} Bb7 {[%emt 0:00:01]} 15. Bxb7 {[%emt 0:00:02]} Qxb7 {[%emt 0:00:00]} 16. cxb5 {[%emt 0:00:01]} Nc5 {[%emt 0:00:03]} 17. e4 {[%emt 0:00:02]} Rd8 {[%emt 0:00:06]} 18. Rf3 {[%emt 0:00:09]} Nxe4 {[%emt 0:00:02]} 19. Qe2 {[%emt 0:00:09]} Nc5 {[%emt 0:00:09]} 20. Re3 {[%emt 0:00:10]} h6 {[%emt 0:00:19]} 21. Bd2 {[%emt 0:00:12]} Qd5 {[%emt 0:00:02]} 22. Rd1 {[%emt 0:00:17]} Bg5 {[%emt 0:00:04]} 23. Rf3 {[%emt 0:00:11]} Qd4+ {[%emt 0:00:17]} 24. Be3 {[%emt 0:00:28]} Bxe3+ {[%emt 0:00:05]} 25. Qxe3 {[%emt 0:00:00]} Qxb2 {[%emt 0:00:12]} 26. Rd2 {[%emt 0:00:17]} Qxb5 {[%emt 0:00:07]} 27. Qxe5 {[%emt 0:00:12]} Qa5 {[%emt 0:00:19]} 28. Rdf2 {[%emt 0:00:09]} Rxd3 {[%emt 0:00:09]} 29. Rxd3 {[%emt 0:00:05]} Nxd3 {[%emt 0:00:04]} 30. Qe8+ {[%emt 0:00:02]} Kh7 {[%emt 0:00:05]} 31. Qe4+ {[%emt 0:00:00]} g6 {[%emt 0:00:03]} 32. Qxd3 {[%emt 0:00:01]} Qg5 {[%emt 0:00:12]} 33. Rxf7+ {[%emt 0:00:04]} Kg8 {[%emt 0:00:03]} 34. Rf1 {[%emt 0:00:05]} Qc5+ {[%emt 0:00:03]} 35. Rf2 {[%emt 0:00:03]} Qc1+ {[%emt 0:00:02]} 36. Kg2 {[%emt 0:00:02] Abdullahefeani74 beraberlik teklif ediyor} Qc6+ {[%emt 0:00:04]} 37. Qf3 {[%emt 0:00:08]} Qxf3+ {[%emt 0:00:06]} 38. Rxf3 {[%emt 0:00:00]} Kg7 {[%emt 0:00:03]} 39. Ra3 {[%emt 0:00:02]} a5 {[%emt 0:00:02]} 40. Rb3 {[%emt 0:00:01]} b5 {[%emt 0:00:01]} 41. Rxb5 {[%emt 0:00:02]} a4 {[%emt 0:00:01]} 42. Ra5 {[%emt 0:00:01] Abdullahefeani74 beraberlik teklif ediyor} Kf6 {[%emt 0:00:02]} 43. Rxa4 {[%emt 0:00:03]} Ke5 {[%emt 0:00:02]} 44. Rb4 {[%emt 0:00:02]} Kd5 {[%emt 0:00:01]} 45. a4 {[%emt 0:00:01]} Kc5 {[%emt 0:00:01]} 46. Rb1 {[%emt 0:00:02]} h5 {[%emt 0:00:04]} 47. a5 {[%emt 0:00:00]} h4 {[%emt 0:00:01]} 48. a6 {[%emt 0:00:00]} h3+ {[%emt 0:00:01] Abdullahefeani74 beraberlik teklif ediyor} 49. Kxh3 {[%emt 0:00:02]} g5 {[%emt 0:00:01]} 50. a7 {[%emt 0:00:03]} g4+ {[%emt 0:00:01]} 51. Kg2 {[%emt 0:00:01]} Kc6 {[%emt 0:00:02]} 52. a8=Q+ {[%emt 0:00:01]} Kc5 {[%emt 0:00:00]} 53. Qc8+ {[%emt 0:00:02]} Kd6 {[%emt 0:00:01]} 54. Rd1+ {[%emt 0:00:01]} Ke5 {[%emt 0:00:01]} 55. Qe8+ {[%emt 0:00:02] Abdullahefeani74 beraberlik teklif ediyor} Kf6 {[%emt 0:00:02]} 56. Rf1+ {[%emt 0:00:02]} Kg7 {[%emt 0:00:02]} 57. Rf7+ {[%emt 0:00:03]} Kg6 {[%emt 0:00:06]} 58. Qg8+ {[%emt 0:00:01]} Kh6 {[%emt 0:00:03]} 59. Rh7# {[%emt 0:00:00] (Lag: Av=1.52s, max=6.5s)} 1-0

[Event "Is Bankasi Online Satranc Turn.13-14 Yas"]
[Site "T#645826Mustafa Kemal"]
[Date "2020.05.08"]
[Round "1"]
[White "Yigitemreyilma02"]
[Black "Suatcankorkmaz06"]
[Result "1-0"]
[WhiteElo "1620"]
[BlackElo "1620"]
[Annotator "NA RC"]
[PlyCount "47"]
[EventDate "2020.05.08"]
[EventType "swiss (blitz)"]
[TimeControl "180+2"]

1. e4 {[%emt 0:00:02]} c5 {[%emt 0:00:02]} 2. Nf3 {[%emt 0:00:01]} d6 {[%emt 0:00:01]} 3. d4 {[%emt 0:00:01]} cxd4 {[%emt 0:00:00]} 4. Nxd4 {[%emt 0:00:01]} Nf6 {[%emt 0:00:01]} 5. Nc3 {[%emt 0:00:01]} a6 {[%emt 0:00:02]} 6. Bg5 {[%emt 0:00:02]} e6 {[%emt 0:00:02]} 7. f4 {[%emt 0:00:02]} Be7 {[%emt 0:00:01]} 8. Qd2 {[%emt 0:00:02]} Nbd7 {[%emt 0:00:03]} 9. O-O-O {[%emt 0:00:02]} O-O {[%emt 0:00:02]} 10. Be2 {[%emt 0:00:04]} h6 {[%emt 0:00:09]} 11. Bxf6 {[%emt 0:00:01]} Nxf6 {[%emt 0:00:03]} 12. g4 {[%emt 0:00:02]} d5 {[%emt 0:00:13]} 13. e5 {[%emt 0:00:03]} Nd7 {[%emt 0:00:12]} 14. h4 {[%emt 0:00:27]} Bxh4 {[%emt 0:00:22]} 15. Nf3 {[%emt 0:00:05]} Be7 {[%emt 0:00:07]} 16. g5 {[%emt 0:00:22]} f6 {[%emt 0:00:41]} 17. gxh6 {[%emt 0:00:06]} gxh6 {[%emt 0:00:24]} 18. Bd3 {[%emt 0:00:15]} f5 {[%emt 0:00:08]} 19. Qg2+ {[%emt 0:00:04]} Kf7 {[%emt 0:00:03]} 20. Rxh6 {[%emt 0:00:07]} Rg8 {[%emt 0:00:11]} 21. Rh7+ {[%emt 0:00:02]} Kf8 {[%emt 0:00:04]} 22. Qh2 {[%emt 0:00:09]} Qe8 {[%emt 0:00:09]} 23. Qh6+ {[%emt 0:00:03]} Rg7 {[%emt 0:00:11]} 24. Qxg7# {[%emt 0:00:02] (Lag: Av=0.54s, max=2.5s)} 1-0

[Event "Is Bankasi Online Satranc Turn.13-14 Yas"]
[Site "T#645826Mustafa Kemal"]
[Date "2020.05.08"]
[Round "2"]
[White "Boratuncaya04"]
[Black "Civangurbuz34"]
[Result "0-1"]
[WhiteElo "1620"]
[BlackElo "1620"]
[Annotator "NA RC"]
[PlyCount "54"]
[EventDate "2020.05.08"]
[EventType "swiss (blitz)"]
[TimeControl "180+2"]

1. d4 {[%emt 0:00:03]} e6 {[%emt 0:00:02]} 2. e4 {[%emt 0:00:02]} c5 {[%emt 0:00:01]} 3. dxc5 {[%emt 0:00:02]} Bxc5 {[%emt 0:00:03]} 4. Bd2 {[%emt 0:00:05]} Qb6 {[%emt 0:00:05]} 5. Be3 {[%emt 0:00:07]} Bxe3 {[%emt 0:00:13]} 6. fxe3 {[%emt 0:00:07]} Qxb2 {[%emt 0:00:01]} 7. Nd2 {[%emt 0:00:05]} Nc6 {[%emt 0:00:05]} 8. Bc4 {[%emt 0:00:20]} Ne5 {[%emt 0:00:16]} 9. Rb1 {[%emt 0:00:08]} Qc3 {[%emt 0:00:02]} 10. Bb3 {[%emt 0:00:39]} Qxe3+ {[%emt 0:00:05]} 11. Qe2 {[%emt 0:00:06]} Ng4 {[%emt 0:00:15]} 12. h3 {[%emt 0:00:17]} Qxe2+ {[%emt 0:00:03]} 13. Kxe2 {[%emt 0:00:05]} Ne5 {[%emt 0:00:01]} 14. Ngf3 {[%emt 0:00:04]} Ng6 {[%emt 0:00:13]} 15. Kf2 {[%emt 0:00:06]} b6 {[%emt 0:00:11]} 16. Rhe1 {[%emt 0:00:18]} Bb7 {[%emt 0:00:02]} 17. Kg1 {[%emt 0:00:10]} Nf4 {[%emt 0:00:12]} 18. Ng5 {[%emt 0:00:10]} h6 {[%emt 0:00:08]} 19. Ngf3 {[%emt 0:00:19]} Nf6 {[%emt 0:00:01]} 20. g3 {[%emt 0:00:04]} Nxh3+ {[%emt 0:00:03]} 21. Kg2 {[%emt 0:00:04]} Ng5 {[%emt 0:00:01]} 22. Nxg5 {[%emt 0:00:02]} hxg5 {[%emt 0:00:02]} 23. Nf3 {[%emt 0:00:01]} Bxe4 {[%emt 0:00:08]} 24. Kf2 {[%emt 0:00:14]} Bxf3 {[%emt 0:00:04]} 25. Kxf3 {[%emt 0:00:02]} g4+ {[%emt 0:00:03]} 26. Kg2 {[%emt 0:00:06]} Rc8 {[%emt 0:00:03]} 27. Rbd1 {[%emt 0:00:03]} Rc3 {[%emt 0:00:05] Zaman (Lag: Av=0.51s, max=0.9s)} 0-1

[Event "Is Bankasi Online Satranc Turn.13-14 Yas"]
[Site "T#645826Mustafa Kemal"]
[Date "2020.05.08"]
[Round "2"]
[White "Ertugrulsavcil46"]
[Black "Sinancanaltay20"]
[Result "0-1"]
[WhiteElo "1620"]
[BlackElo "1522"]
[Annotator "NA RC"]
[PlyCount "64"]
[EventDate "2020.05.08"]
[EventType "swiss (blitz)"]
[TimeControl "180+2"]

1. e4 {[%emt 0:00:03]} g6 {[%emt 0:00:30]} 2. Nc3 {[%emt 0:00:07]} Bg7 {[%emt 0:00:03]} 3. g3 {[%emt 0:00:03]} d6 {[%emt 0:00:03]} 4. Bg2 {[%emt 0:00:04]} Nd7 {[%emt 0:00:17]} 5. b3 {[%emt 0:00:06]} Ngf6 {[%emt 0:00:05]} 6. Bb2 {[%emt 0:00:02]} Kf8 {[%emt 0:00:01]} 7. d3 {[%emt 0:00:02]} e5 {[%emt 0:00:01]} 8. Nge2 {[%emt 0:00:02]} Ke7 {[%emt 0:00:02]} 9. O-O {[%emt 0:00:02]} Re8 {[%emt 0:00:02]} 10. Re1 {[%emt 0:00:03]} Kf8 {[%emt 0:00:01]} 11. Qd2 {[%emt 0:00:01]} Kg8 {[%emt 0:00:01]} 12. a4 {[%emt 0:00:17]} a5 {[%emt 0:00:13]} 13. Nd5 {[%emt 0:00:03]} b6 {[%emt 0:00:07]} 14. Nxf6+ {[%emt 0:00:03]} Nxf6 {[%emt 0:00:04]} 15. d4 {[%emt 0:00:06]} exd4 {[%emt 0:00:09]} 16. Nxd4 {[%emt 0:00:03]} Bb7 {[%emt 0:00:01]} 17. e5 {[%emt 0:00:06]} dxe5 {[%emt 0:00:15]} 18. Bxb7 {[%emt 0:00:05]} Rb8 {[%emt 0:00:01]} 19. Nc6 {[%emt 0:00:09]} Qxd2 {[%emt 0:00:03]} 20. Nxb8 {[%emt 0:00:08]} Ng4 {[%emt 0:00:02]} 21. Rf1 {[%emt 0:00:14]} Rxb8 {[%emt 0:00:09]} 22. Rad1 {[%emt 0:00:04]} Qxc2 {[%emt 0:00:03]} 23. Bf3 {[%emt 0:00:08]} Qxb2 {[%emt 0:00:03]} 24. Bxg4 {[%emt 0:00:01]} Qxb3 {[%emt 0:00:01]} 25. Ra1 {[%emt 0:00:04]} e4 {[%emt 0:00:02]} 26. Rfb1 {[%emt 0:00:04]} Qd3 {[%emt 0:00:10]} 27. Ra2 {[%emt 0:00:05]} Qxb1+ {[%emt 0:00:03]} 28. Kg2 {[%emt 0:00:10]} Qxa2 {[%emt 0:00:00]} 29. h4 {[%emt 0:00:05]} Bd4 {[%emt 0:00:00]} 30. Be2 {[%emt 0:00:04]} Qxe2 {[%emt 0:00:02]} 31. Kh3 {[%emt 0:00:03]} Qxf2 {[%emt 0:00:00]} 32. Kg4 {[%emt 0:00:02]} Qf5# {[%emt 0:00:04] (Lag: Av=0.49s, max=0.8s)} 0-1

[Event "Is Bankasi Online Satranc Turn.13-14 Yas"]
[Site "T#645826Mustafa Kemal"]
[Date "2020.05.08"]
[Round "3"]
[White "Muhammedeminar20"]
[Black "Sarpkagankoca32"]
[Result "1-0"]
[WhiteElo "1762"]
[BlackElo "1620"]
[Annotator "NA RC"]
[PlyCount "45"]
[EventDate "2020.05.08"]
[EventType "swiss (blitz)"]
[TimeControl "180+2"]

1. d4 {[%emt 0:00:02]} Nf6 {[%emt 0:00:02]} 2. Nf3 {[%emt 0:00:07]} e6 {[%emt 0:00:04]} 3. Bf4 {[%emt 0:00:01]} d5 {[%emt 0:00:05]} 4. e3 {[%emt 0:00:02]} c5 {[%emt 0:00:01]} 5. c3 {[%emt 0:00:01]} Nc6 {[%emt 0:00:02]} 6. Bd3 {[%emt 0:00:01]} Bd7 {[%emt 0:00:03]} 7. Nbd2 {[%emt 0:00:02]} Be7 {[%emt 0:00:03]} 8. h3 {[%emt 0:00:01]} O-O {[%emt 0:00:02]} 9. O-O {[%emt 0:00:00]} Rc8 {[%emt 0:00:05]} 10. Bh2 {[%emt 0:00:14]} cxd4 {[%emt 0:00:17]} 11. exd4 {[%emt 0:00:01]} Be8 {[%emt 0:00:23]} 12. Re1 {[%emt 0:00:24]} Bd6 {[%emt 0:00:18]} 13. Bxd6 {[%emt 0:00:21]} Qxd6 {[%emt 0:00:00]} 14. Ne5 {[%emt 0:00:01]} Nd7 {[%emt 0:00:14]} 15. f4 {[%emt 0:00:04]} Ndxe5 {[%emt 0:00:26]} 16. fxe5 {[%emt 0:00:02]} Qe7 {[%emt 0:00:00]} 17. Nf3 {[%emt 0:00:06]} h6 {[%emt 0:00:06]} 18. Rc1 {[%emt 0:00:07]} Na5 {[%emt 0:00:19]} 19. b3 {[%emt 0:00:10]} Rc6 {[%emt 0:00:32]} 20. Bb1 {[%emt 0:00:30]} Qc7 {[%emt 0:00:21]} 21. Qd3 {[%emt 0:00:02]} g6 {[%emt 0:00:01]} 22. Nh2 {[%emt 0:00:11]} h5 {[%emt 0:00:10]} 23. g4 {[%emt 0:00:03] Zaman (Lag: Av=0.61s, max=1.3s)} 1-0